bitfinex/quotes_BTCUSD_20250623
["timestamp","ask_amount","ask_price","bid_price","bid_amount"]
[1750669397472,0.04306114,101970.0,101960.0,0.03714628]
[1750669397712,0.03325501,101970.0,101960.0,0.03714628]
[1750669398542,0.05161018,101970.0,101960.0,0.03714628]
[1750669400715,0.05160956,101970.0,101960.0,0.03714628]
[1750669402104,0.05160925,101970.0,101960.0,0.03714628]
[1750669403437,0.06141415,101970.0,101960.0,0.03714628]
[1750669403640,0.05160802,101970.0,101960.0,0.03714628]
[1750669404762,0.05160777,101970.0,101960.0,0.03714628]
[1750669405416,0.08102663,101970.0,101950.0,0.033]
[1750669405641,0.14252663,101970.0,101950.0,0.03346317]
[1750669406118,0.11142663,101970.0,101950.0,0.03346317]
[1750669406336,0.11142621,101970.0,101950.0,0.03346317]
[1750669406770,0.08102621,101970.0,101950.0,0.03346317]
[1750669407434,0.08102612,101970.0,101950.0,0.03346317]
[1750669407648,0.1608,101960.0,101950.0,0.03346317]
[1750669408553,0.1608,101960.0,101950.0,0.06576317]
[1750669408985,0.19994461,101970.0,101950.0,0.06776317]
[1750669409199,0.24178382,101970.0,101950.0,0.06776317]
[1750669409437,0.24178382,101970.0,101950.0,0.06976317]
[1750669409952,0.22217128,101970.0,101950.0,0.06976317]
[1750669410163,0.22217128,101970.0,101950.0,0.06776317]
[1750669410608,0.2319775,101970.0,101950.0,0.06776317]
[1750669410830,0.22217128,101970.0,101950.0,0.06776317]
[1750669411069,0.22217128,101970.0,101950.0,0.06576317]
[1750669412125,0.22216938,101970.0,101950.0,0.06576317]
[1750669412342,0.21236325,101970.0,101950.0,0.06576317]
[1750669412552,0.20255731,101970.0,101950.0,0.06576317]
[1750669412776,0.04183731,101970.0,101960.0,0.0611]
[1750669413000,0.06010871,101970.0,101960.0,0.0611]
[1750669413221,0.06010883,101970.0,101960.0,0.0611]
[1750669415050,0.06010871,101970.0,101960.0,0.0611]
[1750669415249,0.04176,101970.0,101960.0,0.0611]
[1750669415900,0.23576,101990.0,101960.0,0.06726632]
[1750669416106,0.04176,101970.0,101960.0,0.00616632]
[1750669416328,0.04176,101970.0,101950.0,0.00301503]
[1750669416535,0.04176,101970.0,101950.0,0.10331442]
[1750669416742,0.25536851,101990.0,101960.0,0.0645]
[1750669416743,0.25536841,101990.0,101960.0,0.0645]
[1750669416946,0.28802787,101990.0,101970.0,0.0623]
[1750669417162,0.48160203,101990.0,101980.0,0.0623]
[1750669417373,0.50955783,101990.0,101980.0,0.0623]
[1750669417578,0.49975372,101990.0,101980.0,0.06853]
[1750669417791,0.4905786,101990.0,101980.0,0.0623]
[1750669418000,0.30027,101990.0,101980.0,0.0623]
[1750669418208,0.50275,101990.0,101980.0,0.0623]
[1750669418626,0.50955401,101990.0,101980.0,0.0623]
[1750669418858,0.50275,101990.0,101980.0,0.0623]
[1750669419256,0.51255401,101990.0,101980.0,0.0623]
[1750669419470,0.51655401,101990.0,101980.0,0.0623]
[1750669420535,0.32254556,101990.0,101980.0,0.0623]
[1750669420745,0.48318057,101990.0,101980.0,0.0623]
[1750669423671,0.48317742,101990.0,101980.0,0.0623]
[1750669425150,0.50663005,101990.0,101980.0,0.0623]
[1750669425907,0.7321409,101990.0,101980.0,0.0623]
[1750669426115,0.53604325,101990.0,101980.0,0.0623]
[1750669426368,0.54584813,101990.0,101980.0,0.0623]
[1750669426584,0.53604325,101990.0,101980.0,0.0623]
[1750669426791,0.74194568,101990.0,101980.0,0.0623]
[1750669427215,0.75045888,101990.0,101980.0,0.0623]
[1750669427841,0.55436123,101990.0,101980.0,0.0623]
[1750669428281,0.75045888,101990.0,101980.0,0.05175001]
[1750669428485,0.55436123,101990.0,101980.0,0.05175001]
[1750669428711,0.75045888,101990.0,101980.0,0.05175001]
[1750669429206,0.75045543,101990.0,101980.0,0.05175001]
[1750669429409,0.55435778,101990.0,101980.0,0.05175001]
[1750669429827,0.75017543,101990.0,101980.0,0.05175001]
[1750669430480,0.75998031,101990.0,101980.0,0.00263604]
[1750669430679,0.55407778,101990.0,101960.0,0.029492]
[1750669430903,0.55407778,101990.0,101960.0,0.14282685]
[1750669431337,0.75017625,101990.0,101960.0,0.14282685]
[1750669431539,0.541273,101990.0,101960.0,0.14282685]
[1750669431965,0.537273,101990.0,101960.0,0.14282685]
[1750669432169,0.541273,101990.0,101960.0,0.14282685]
[1750669432390,0.55407788,101990.0,101960.0,0.14282685]
[1750669432817,0.544273,101990.0,101960.0,0.14282685]
[1750669433667,0.544273,101990.0,101970.0,0.0609]
[1750669434487,0.52762635,101990.0,101970.0,0.0609]
[1750669434702,0.55107013,101990.0,101970.0,0.0609]
[1750669434914,0.55407013,101990.0,101970.0,0.0609]
[1750669435118,0.5540646,101990.0,101970.0,0.0609]
[1750669435345,0.00980497,101980.0,101970.0,0.0609]
[1750669435563,0.71305076,101990.0,101970.0,0.0609]
[1750669435773,0.76397095,101990.0,101970.0,0.0609]
[1750669435976,0.56787414,101990.0,101970.0,0.0609]
[1750669436420,0.55806926,101990.0,101970.0,0.0609]
[1750669436636,0.54826448,101990.0,101970.0,0.0609]
[1750669436851,0.54526448,101990.0,101970.0,0.0609]
[1750669437270,0.001,101980.0,101970.0,0.0609]
[1750669437726,0.49434325,101990.0,101970.0,0.0609]
[1750669437942,0.52079361,101990.0,101970.0,0.0609]
[1750669438155,0.54827392,101990.0,101970.0,0.0609]
[1750669438614,0.54527392,101990.0,101970.0,0.0609]
[1750669439935,0.55507793,101990.0,101970.0,0.0609]
[1750669440140,0.001,101980.0,101970.0,0.0609]
[1750669440357,0.50414726,101990.0,101970.0,0.0609]
[1750669440601,0.52760341,101990.0,101970.0,0.0609]
[1750669440821,0.55809069,101990.0,101970.0,0.0609]
[1750669441272,0.55009069,101990.0,101970.0,0.0609]
[1750669441489,0.002,101980.0,101970.0,0.0609]
[1750669441748,0.51875673,101990.0,101970.0,0.0609]
[1750669441954,0.56970326,101990.0,101970.0,0.0609]
[1750669442162,0.57370326,101990.0,101970.0,0.0609]
[1750669442380,0.55024264,101990.0,101970.0,0.0609]
[1750669442610,0.33394385,101990.0,101970.0,0.0609]
[1750669442839,0.002,101980.0,101970.0,0.0609]
[1750669443298,0.003,101980.0,101970.0,0.0609]
[1750669444215,0.001,101980.0,101970.0,0.0609]
[1750669445349,0.0618,101980.0,101960.0,0.033092]
[1750669445576,0.11872085,101980.0,101960.0,0.0318]
[1750669445783,0.13439146,101980.0,101960.0,0.02018222]
[1750669446002,0.14419711,101980.0,101960.0,0.02018222]
[1750669446220,0.1432121,101980.0,101960.0,0.02018222]
[1750669446648,0.1442121,101980.0,101960.0,0.02018222]
[1750669447094,0.15401784,101980.0,101950.0,0.00056317]
[1750669447314,0.16028,101970.0,101950.0,0.00056317]
[1750669448386,0.16028,101970.0,101950.0,0.03216317]
[1750669448870,0.26338201,101980.0,101950.0,0.03216317]
[1750669449080,0.28686357,101980.0,101950.0,0.03216317]
[1750669449312,0.51049501,101980.0,101950.0,0.03216317]
[1750669449525,0.31337732,101980.0,101950.0,0.03216317]
[1750669449954,0.31437732,101980.0,101950.0,0.03216317]
[1750669450178,0.31437732,101980.0,101950.0,0.06496317]
[1750669450826,0.31237732,101980.0,101950.0,0.06496317]
[1750669451041,0.31437732,101980.0,101950.0,0.06496317]
[1750669451252,0.00980594,101970.0,101950.0,0.06496317]
[1750669451515,0.09241925,101970.0,101950.0,0.00056317]
[1750669451746,0.13423166,101970.0,101950.0,0.00056317]
[1750669451953,0.12442505,101970.0,101950.0,0.00056317]
[1750669452171,0.13423189,101970.0,101950.0,0.00056317]
[1750669452388,0.12056424,101970.0,101950.0,0.00056317]
[1750669452592,0.11075754,101970.0,101950.0,0.00056317]
[1750669453026,0.12056434,101970.0,101950.0,0.00056317]
[1750669453260,0.3167005,101970.0,101950.0,0.00056317]
[1750669453475,0.0098069,101960.0,101950.0,0.00056317]
[1750669453724,0.10222596,101970.0,101950.0,0.00056317]
[1750669453975,0.12056362,101970.0,101950.0,0.00056317]
[1750669454191,0.11075682,101970.0,101950.0,0.00056317]
[1750669454648,0.14401842,101970.0,101950.0,0.00056317]
[1750669454878,0.12568076,101970.0,101950.0,0.00056317]
[1750669455120,0.0098069,101960.0,101950.0,0.00056317]
[1750669455405,0.31016895,101970.0,101950.0,0.00056317]
[1750669455623,0.35194545,101970.0,101950.0,0.00056317]
[1750669455878,0.15580894,101970.0,101950.0,0.00056317]
[1750669456140,0.14600214,101970.0,101950.0,0.00056317]
[1750669456358,0.14500214,101970.0,101950.0,0.00056317]
[1750669456569,0.04148,101960.0,101950.0,0.00056317]
[1750669456775,0.06012821,101960.0,101950.0,0.00056317]
[1750669458310,0.04148,101960.0,101950.0,0.00056317]
[1750669460862,0.0817869,101960.0,101950.0,0.00056317]
[1750669461078,0.1143869,101960.0,101950.0,0.00056317]
[1750669461292,0.12419399,101960.0,101950.0,0.00056317]
[1750669461472,0.1143869,101960.0,101950.0,0.00056317]
[1750669461913,0.12419399,101960.0,101950.0,0.00056317]
[1750669462560,0.1143869,101960.0,101950.0,0.00056317]
[1750669464057,0.10458,101960.0,101950.0,0.00056317]
[1750669464298,0.04148,101960.0,101950.0,0.00056317]
[1750669465801,0.04148,101960.0,101950.0,0.06156317]
[1750669467781,0.17000603,101970.0,101960.0,0.0319]
[1750669467782,0.16016,101970.0,101960.0,0.0319]
[1750669467996,0.20164,101970.0,101960.0,0.0627]
[1750669468429,0.38492631,101990.0,101960.0,0.0627]
[1750669468664,0.04148,101970.0,101960.0,0.0627]
[1750669469082,0.04448,101970.0,101960.0,0.0627]
[1750669469979,0.04248,101970.0,101960.0,0.0627]
[1750669470189,0.04448,101970.0,101960.0,0.0627]
[1750669473460,0.003,101970.0,101960.0,0.0627]
[1750669473672,0.04452,101970.0,101960.0,0.0627]
[1750669477833,0.04456,101970.0,101960.0,0.0627]
[1750669478698,0.04152,101970.0,101960.0,0.0627]
[1750669479731,0.04152,101970.0,101960.0,0.0308]
[1750669480556,0.04152,101970.0,101960.0,0.0625]
[1750669485107,0.16004,101980.0,101970.0,0.0618]
[1750669485328,0.33793039,101980.0,101950.0,0.09155817]
[1750669485542,0.37715191,101980.0,101950.0,0.06206317]
[1750669486192,0.36734617,101980.0,101950.0,0.06206317]
[1750669486401,0.65541302,101980.0,101950.0,0.06206317]
[1750669486611,0.00980613,101970.0,101950.0,0.06206317]
[1750669486817,0.05874017,101970.0,101950.0,0.06206317]
[1750669487019,0.07216567,101970.0,101950.0,0.06206317]
[1750669487228,0.08197189,101970.0,101950.0,0.06206317]
[1750669487448,0.11427189,101970.0,101950.0,0.06206317]
[1750669487657,0.1240784,101970.0,101950.0,0.06206317]
[1750669487861,0.11427189,101970.0,101950.0,0.06206317]
[1750669488062,0.14754626,101970.0,101950.0,0.06206317]
[1750669488273,0.13873984,101970.0,101950.0,0.06206317]
[1750669488485,0.13973984,101970.0,101950.0,0.06206317]
[1750669488693,0.12993362,101970.0,101950.0,0.06206317]
[1750669489094,0.12993352,101970.0,101950.0,0.06206317]
[1750669489304,0.12993367,101970.0,101950.0,0.06206317]
[1750669489520,0.04152,101960.0,101950.0,0.06206317]
[1750669491024,0.04152,101960.0,101950.0,0.06406317]
[1750669493434,0.04152,101960.0,101950.0,0.07342909]
[1750669493672,0.04152,101960.0,101950.0,0.06406317]
[1750669504615,0.04152,101960.0,101950.0,0.00256317]
[1750669505511,0.04152,101960.0,101950.0,0.03276317]
[1750669506380,0.04152,101960.0,101950.0,0.06376317]
[1750669508132,0.04136,101960.0,101950.0,0.06376317]
[1750669513788,0.16004,101970.0,101960.0,0.0654]
[1750669514031,0.234684,101970.0,101960.0,0.0654]
[1750669514813,0.234684,101970.0,101940.0,0.0301]
[1750669514814,0.4853351,101970.0,101940.0,0.0301]
[1750669515012,0.00980709,101960.0,101950.0,0.03]
[1750669515428,0.04309234,101960.0,101950.0,0.03]
[1750669515800,0.03328506,101960.0,101950.0,0.03]
[1750669516007,0.05289972,101960.0,101940.0,0.00023898]
[1750669516236,0.04309234,101960.0,101940.0,0.00023898]
[1750669516643,0.03328506,101960.0,101950.0,0.002]
[1750669516898,0.04309234,101960.0,101950.0,0.002]
[1750669517272,0.05289981,101960.0,101950.0,0.002]
[1750669517475,0.04309234,101960.0,101950.0,0.002]
[1750669517800,0.04309234,101960.0,101950.0,0.0335]
[1750669518781,0.04309234,101960.0,101950.0,0.0345]
[1750669519031,0.04309234,101960.0,101950.0,0.0325]
[1750669519546,0.04509234,101960.0,101950.0,0.0325]
[1750669520163,0.04509234,101960.0,101950.0,0.0315]
[1750669520589,0.04609234,101960.0,101950.0,0.0315]
[1750669521422,0.04609234,101960.0,101950.0,0.0637]
[1750669521621,0.05589972,101960.0,101950.0,0.0637]
[1750669522317,0.04609234,101960.0,101950.0,0.0637]
[1750669522971,0.04609225,101960.0,101950.0,0.0637]
[1750669523420,0.05589953,101960.0,101950.0,0.0637]
[1750669524548,0.065707,101960.0,101950.0,0.0637]
[1750669524737,0.05589953,101960.0,101950.0,0.0637]
[1750669525811,0.065707,101960.0,101950.0,0.0637]
[1750669526034,0.05589953,101960.0,101950.0,0.0637]
[1750669526249,0.06570691,101960.0,101950.0,0.0637]
[1750669526466,0.07551438,101960.0,101950.0,0.0637]
[1750669527747,0.06570691,101960.0,101950.0,0.0637]
[1750669527938,0.04609225,101960.0,101950.0,0.0637]
[1750669528191,0.05589963,101960.0,101950.0,0.0637]
[1750669530183,0.04609225,101960.0,101950.0,0.0637]
[1750669530387,0.05589963,101960.0,101950.0,0.0637]
[1750669530590,0.05593963,101960.0,101950.0,0.0637]
[1750669530792,0.04613225,101960.0,101950.0,0.0637]
[1750669530967,0.05593963,101960.0,101950.0,0.0637]
[1750669531373,0.02651797,101960.0,101950.0,0.0637]
[1750669531742,0.03632487,101960.0,101950.0,0.0637]
[1750669532983,0.04613196,101960.0,101950.0,0.0637]
[1750669533594,0.04613186,101960.0,101950.0,0.0637]
[1750669534018,0.02651797,101960.0,101950.0,0.0637]
[1750669540049,0.03632487,101960.0,101950.0,0.0637]
[1750669540277,0.02651797,101960.0,101950.0,0.0637]
[1750669540947,0.03632487,101960.0,101950.0,0.0637]
[1750669541661,0.02651797,101960.0,101950.0,0.0637]
[1750669545330,0.06787797,101960.0,101950.0,0.0637]
[1750669546046,0.04136,101960.0,101950.0,0.0637]
[1750669547115,0.04136,101960.0,101950.0,0.0701939]
[1750669547351,0.38238772,101980.0,101970.0,0.0635]
[1750669547352,0.15996,101980.0,101970.0,0.0635]
[1750669547826,0.04136,101980.0,101970.0,0.0635]
[1750669548297,0.05116507,101980.0,101970.0,0.0635]
[1750669548562,0.04336,101980.0,101970.0,0.0635]
[1750669548838,0.04836,101980.0,101970.0,0.0635]
[1750669549294,0.007,101980.0,101970.0,0.0635]
[1750669549499,0.04836,101980.0,101970.0,0.0635]
[1750669552155,0.05752458,101980.0,101970.0,0.0635]
[1750669553053,0.007,101980.0,101970.0,0.0635]
[1750669553262,0.04836,101980.0,101970.0,0.0635]
[1750669553476,0.04636,101980.0,101970.0,0.0635]
[1750669554330,0.04136,101980.0,101970.0,0.0635]
[1750669554989,0.26584869,101990.0,101970.0,0.0606]
[1750669555228,0.42580869,101990.0,101980.0,0.0624]
[1750669555443,0.47632853,101990.0,101980.0,0.0624]
[1750669556287,0.48132853,101990.0,101980.0,0.0624]
[1750669556501,0.4817911,101990.0,101980.0,0.0624]
[1750669557156,0.3218311,101990.0,101980.0,0.0624]
[1750669557359,0.3218311,101990.0,101980.0,0.06864]
[1750669557572,0.2774711,101990.0,101980.0,0.06864]
[1750669557808,0.3168311,101990.0,101980.0,0.0624]
[1750669558026,0.30191388,101990.0,101980.0,0.0624]
[1750669558232,0.34527004,101990.0,101980.0,0.0624]
[1750669558679,0.30391004,101990.0,101980.0,0.0624]
[1750669558886,0.34527004,101990.0,101980.0,0.0624]
[1750669559570,0.30391004,101990.0,101980.0,0.0624]
[1750669559772,0.34527004,101990.0,101980.0,0.0624]
[1750669560783,0.34526855,101990.0,101980.0,0.0624]
[1750669561150,0.32182577,101990.0,101980.0,0.0624]
[1750669565640,0.32182489,101990.0,101980.0,0.0624]
[1750669569224,0.32182724,101990.0,101980.0,0.0624]
[1750669569951,0.33163144,101990.0,101960.0,0.00245159]
[1750669570177,0.32186724,101990.0,101960.0,0.10029939]
[1750669570397,0.33167144,101990.0,101960.0,0.10029939]
[1750669570674,0.32186724,101990.0,101960.0,0.10029939]
[1750669570887,0.32967135,101990.0,101960.0,0.10029939]
[1750669571376,0.32186724,101990.0,101960.0,0.10029939]
[1750669571797,0.31886724,101990.0,101960.0,0.10029939]
[1750669572237,0.32186724,101990.0,101960.0,0.10029939]
[1750669572873,0.32186724,101990.0,101970.0,0.0622]
[1750669573949,0.31986724,101990.0,101970.0,0.0622]
[1750669574178,0.32186724,101990.0,101970.0,0.0622]
[1750669574675,0.33167125,101990.0,101970.0,0.0622]
[1750669574890,0.32867125,101990.0,101970.0,0.0622]
[1750669575300,0.33167981,101990.0,101970.0,0.0622]
[1750669575527,0.34534653,101990.0,101970.0,0.0622]
[1750669575727,0.35515064,101990.0,101970.0,0.0622]
[1750669576895,0.35315064,101990.0,101970.0,0.0622]
[1750669577081,0.34334653,101990.0,101970.0,0.0622]
[1750669578104,0.35316103,101990.0,101970.0,0.0622]
[1750669578321,0.34335692,101990.0,101970.0,0.0622]
[1750669578760,0.35316093,101990.0,101970.0,0.0622]
[1750669579270,0.36296504,101990.0,101970.0,0.0622]
[1750669579712,0.35316093,101990.0,101970.0,0.0622]
[1750669580135,0.36296513,101990.0,101970.0,0.0622]
[1750669580554,0.35316093,101990.0,101970.0,0.0622]
[1750669580760,0.36296513,101990.0,101970.0,0.0622]
[1750669581167,0.343986,101990.0,101970.0,0.0622]
[1750669582013,0.3537903,101990.0,101970.0,0.0622]
[1750669582226,0.343986,101990.0,101970.0,0.0622]
[1750669582451,0.22051585,101980.0,101940.0,0.0001]
[1750669582670,0.07627169,101970.0,101940.0,0.10039939]
[1750669583113,0.08607763,101970.0,101940.0,0.10039939]
[1750669583329,0.13778998,101970.0,101940.0,0.10039939]
[1750669583543,0.16127831,101970.0,101940.0,0.10039939]
[1750669584318,0.13778988,101970.0,101940.0,0.10039939]
[1750669584532,0.1475963,101970.0,101940.0,0.10039939]
[1750669584715,0.1475963,101970.0,101940.0,0.10139939]
[1750669585466,0.1475963,101970.0,101950.0,0.0332]
[1750669586005,0.13929271,101970.0,101940.0,0.13379939]
[1750669586208,0.03335169,101960.0,101940.0,0.16699939]
[1750669586416,0.05061613,101960.0,101940.0,0.16599939]
[1750669586591,0.09152303,101960.0,101940.0,0.16599939]
[1750669586828,0.08171613,101960.0,101950.0,0.001]
[1750669587039,0.07926444,101960.0,101950.0,0.003]
[1750669587248,0.08907134,101960.0,101950.0,0.002]
[1750669587474,0.07926444,101960.0,101940.0,0.16399939]
[1750669587681,0.04132,101960.0,101940.0,0.16699939]
[1750669587892,0.04132,101960.0,101950.0,0.031]
[1750669588316,0.04132,101960.0,101950.0,0.034]
[1750669589572,0.04132,101960.0,101950.0,0.035]
[1750669589778,0.04132,101960.0,101950.0,0.031]
[1750669589991,0.04132,101960.0,101950.0,0.0649]
[1750669590401,0.04132,101960.0,101950.0,0.0639]
[1750669590824,0.04132,101960.0,101950.0,0.0649]
[1750669595464,0.04132,101960.0,101950.0,0.07537964]
[1750669596592,0.04132,101960.0,101950.0,0.0649]
[1750669605737,0.43896967,101990.0,101960.0,0.0637]
[1750669605958,0.43896967,101990.0,101950.0,0.003]
[1750669605959,0.04128,101970.0,101950.0,0.003]
[1750669606189,0.04128,101970.0,101950.0,0.10329939]
[1750669606430,0.04128,101970.0,101960.0,0.0637]
[1750669610402,0.04128,101970.0,101960.0,0.08009994]
[1750669611083,0.04128,101970.0,101960.0,0.0637]
[1750669611589,0.12299245,101970.0,101940.0,0.0001]
[1750669611837,0.28287245,101970.0,101940.0,0.10039939]
[1750669612055,0.30248566,101970.0,101940.0,0.10039939]
[1750669612270,0.29267896,101970.0,101940.0,0.10039939]
[1750669612503,0.01961409,101960.0,101940.0,0.0001]
[1750669612726,0.08291409,101960.0,101940.0,0.0001]
[1750669613603,0.08291399,101960.0,101940.0,0.0011]
[1750669613851,0.09272127,101960.0,101940.0,0.0011]
[1750669614090,0.08291399,101960.0,101940.0,0.0011]
[1750669614529,0.08291399,101960.0,101940.0,0.0645]
[1750669614746,0.09272127,101960.0,101940.0,0.0645]
[1750669615192,0.08291399,101960.0,101940.0,0.0645]
[1750669615411,0.09272127,101960.0,101940.0,0.0665]
[1750669615667,0.09272127,101960.0,101940.0,0.0645]
[1750669615893,0.09272118,101960.0,101940.0,0.0645]
[1750669616354,0.10252865,101960.0,101940.0,0.0011]
[1750669616591,0.11233632,101960.0,101940.0,0.0001]
[1750669616822,0.00980786,101950.0,101940.0,0.0001]
[1750669617490,0.02942425,101950.0,101940.0,0.0001]
[1750669617749,0.11823218,101950.0,101940.0,0.0001]
[1750669617984,0.09552425,101950.0,101940.0,0.0001]
[1750669618210,0.10533278,101950.0,101940.0,0.00014614]
[1750669618685,0.09552425,101950.0,101940.0,0.00214614]
[1750669618916,0.10533278,101950.0,101940.0,0.00214614]
[1750669619144,0.11514141,101950.0,101930.0,0.0192268]
[1750669619374,0.04128,101940.0,101930.0,0.0192268]
[1750669620539,0.04128,101940.0,101930.0,0.0202268]
[1750669620979,0.070785,101940.0,101930.0,0.0192268]
[1750669621222,0.10987001,101940.0,101930.0,0.0192268]
[1750669621439,0.10987001,101940.0,101930.0,0.0222268]
[1750669622100,0.12948832,101940.0,101930.0,0.0252268]
[1750669622331,0.11967902,101940.0,101930.0,0.0222268]
[1750669622552,0.11967902,101940.0,101930.0,0.0192268]
[1750669622775,0.11967902,101940.0,101930.0,0.0202268]
[1750669623003,0.14177001,101940.0,101930.0,0.0202268]
[1750669623225,0.14177001,101940.0,101920.0,0.0605268]
[1750669623438,0.10987001,101940.0,101920.0,0.0605268]
[1750669624392,0.10006109,101940.0,101920.0,0.0605268]
[1750669624838,0.10006109,101940.0,101920.0,0.0615268]
[1750669625058,0.10006109,101940.0,101930.0,0.0313]
[1750669625289,0.10006109,101940.0,101930.0,0.13159939]
[1750669625290,0.02927609,101940.0,101930.0,0.13159939]
[1750669625748,0.04141069,101950.0,101940.0,0.0305]
[1750669625957,9.069e-05,101950.0,101940.0,0.0305]
[1750669626173,0.02959169,101950.0,101940.0,0.0305]
[1750669626393,9.069e-05,101950.0,101940.0,0.0625]
[1750669626630,0.0296136,101950.0,101940.0,0.0625]
[1750669626849,9.069e-05,101950.0,101940.0,0.16279939]
[1750669627081,0.00109069,101950.0,101940.0,0.16279939]
[1750669629108,0.00209069,101950.0,101940.0,0.16279939]
[1750669629331,0.0307061,101950.0,101940.0,0.16279939]
[1750669629555,0.00209069,101950.0,101940.0,0.16279939]
[1750669631976,0.00209069,101950.0,101940.0,0.17932456]
[1750669632203,0.00209069,101950.0,101940.0,0.16279939]
[1750669632645,0.03184796,101950.0,101940.0,0.16279939]
[1750669637149,0.03184796,101950.0,101940.0,0.0625]
[1750669637842,0.04165582,101950.0,101930.0,0.0636]
[1750669638754,0.04065582,101950.0,101930.0,0.0636]
[1750669638978,0.03965582,101950.0,101930.0,0.0636]
[1750669639199,0.11246397,101950.0,101930.0,0.0636]
[1750669639931,0.11246387,101950.0,101930.0,0.0636]
[1750669640371,0.12227221,101950.0,101920.0,0.0636]
[1750669640585,0.07230882,101940.0,101920.0,0.0636]
[1750669640805,0.08211783,101940.0,101920.0,0.0636]
[1750669641248,0.08211774,101940.0,101920.0,0.0636]
[1750669642106,0.48787752,101950.0,101920.0,0.0636]
[1750669642351,0.48887752,101950.0,101920.0,0.0636]
[1750669642574,0.28389327,101950.0,101920.0,0.0636]
[1750669642801,0.29170199,101950.0,101920.0,0.0636]
[1750669643214,0.29170199,101950.0,101920.0,0.0656]
[1750669643431,0.29170199,101950.0,101920.0,0.0646]
[1750669643718,0.29170199,101950.0,101920.0,0.0636]
[1750669643943,0.29270199,101950.0,101920.0,0.0636]
[1750669644163,0.28289327,101950.0,101920.0,0.0636]
[1750669644373,0.28389327,101950.0,101920.0,0.0636]
[1750669645090,0.29370199,101950.0,101920.0,0.0636]
[1750669645541,0.28389327,101950.0,101920.0,0.0636]
[1750669645746,0.029505,101940.0,101920.0,0.0636]
[1750669646826,0.029505,101940.0,101930.0,0.0313]
[1750669647277,0.029505,101940.0,101930.0,0.0634]
[1750669647929,0.029505,101940.0,101920.0,0.001]
[1750669648149,0.029505,101940.0,101920.0,0.0647]
[1750669648612,0.10283644,101940.0,101920.0,0.0646]
[1750669648812,0.06062695,101940.0,101930.0,0.001]
[1750669649023,0.02942695,101940.0,101930.0,0.001]
[1750669649240,0.03923625,101940.0,101920.0,0.0646]
[1750669649472,0.06874125,101940.0,101920.0,0.0646]
[1750669649674,0.05893195,101940.0,101930.0,0.001]
[1750669649933,0.06874144,101940.0,101930.0,0.001]
[1750669650395,0.06874105,101940.0,101920.0,0.0656]
[1750669650843,0.03923605,101940.0,101920.0,0.0666]
[1750669651068,0.06874105,101940.0,101920.0,0.0656]
[1750669651499,0.07855045,101940.0,101930.0,0.001]
[1750669651934,0.03923663,101940.0,101930.0,0.001]
[1750669652149,0.11002163,101940.0,101930.0,0.002]
[1750669652583,0.11002163,101940.0,101930.0,0.001]
[1750669653332,0.10021223,101940.0,101930.0,0.001]
[1750669653536,0.10021223,101940.0,101930.0,0.002]
[1750669653944,0.11002172,101940.0,101930.0,0.002]
[1750669654370,0.10021223,101940.0,101930.0,0.002]
[1750669654799,0.09040293,101940.0,101930.0,0.002]
[1750669655253,0.09040293,101940.0,101930.0,0.0655]
[1750669655678,0.10021214,101940.0,101930.0,0.0655]
[1750669655902,0.09040293,101940.0,101930.0,0.0655]
[1750669656111,0.10021214,101940.0,101930.0,0.0655]
[1750669657681,0.09040293,101940.0,101930.0,0.0655]
[1750669657908,0.10021204,101940.0,101930.0,0.0655]
[1750669658789,0.11002134,101940.0,101930.0,0.002]
[1750669658983,0.10021204,101940.0,101930.0,0.002]
[1750669660634,0.09040293,101940.0,101930.0,0.002]
[1750669661076,0.08059392,101940.0,101930.0,0.002]
[1750669661502,0.08059392,101940.0,101930.0,0.0658]
[1750669661714,0.070785,101940.0,101930.0,0.0658]
[1750669661922,0.08059382,101940.0,101930.0,0.0658]
[1750669662561,0.09040283,101940.0,101930.0,0.0658]
[1750669664966,0.08063382,101940.0,101930.0,0.0658]
[1750669665415,0.09044283,101940.0,101930.0,0.0658]
[1750669666759,0.09044274,101940.0,101930.0,0.0658]
[1750669666977,0.029545,101940.0,101930.0,0.0658]
[1750669667200,0.070865,101940.0,101930.0,0.0658]
[1750669673260,0.09434098,101940.0,101930.0,0.002]
[1750669673696,0.09434098,101940.0,101930.0,0.0327]
[1750669673975,0.1041498,101940.0,101930.0,0.0327]
[1750669676002,0.09434098,101940.0,101930.0,0.0327]
[1750669676919,0.1041498,101940.0,101930.0,0.0327]
[1750669677133,0.11395881,101940.0,101930.0,0.0327]
[1750669677387,0.11395881,101940.0,101930.0,0.002]
[1750669677606,0.12376792,101940.0,101920.0,0.032]
[1750669677849,0.14445881,101940.0,101920.0,0.032]
[1750669678298,0.15426802,101940.0,101920.0,0.032]
[1750669678528,0.14445881,101940.0,101920.0,0.032]
[1750669679429,0.14445881,101940.0,101920.0,0.034]
[1750669679653,0.15426802,101940.0,101920.0,0.034]
[1750669680108,0.11395881,101940.0,101920.0,0.034]
[1750669680973,0.14675881,101940.0,101920.0,0.034]
[1750669682083,0.15656792,101940.0,101920.0,0.034]
[1750669682509,0.16637713,101940.0,101920.0,0.034]
[1750669682950,0.1369498,101940.0,101920.0,0.034]
[1750669683184,0.13694999,101940.0,101920.0,0.034]
[1750669683431,0.1369499,101940.0,101920.0,0.034]
[1750669683889,0.14675901,101940.0,101920.0,0.034]
[1750669684118,0.1369499,101940.0,101920.0,0.034]
[1750669685745,0.09434098,101940.0,101920.0,0.034]
[1750669686168,0.4441498,101940.0,101930.0,0.0304]
[1750669686819,0.43434098,101940.0,101930.0,0.0304]
[1750669687055,0.4441499,101940.0,101930.0,0.0304]
[1750669687488,0.43434098,101940.0,101930.0,0.0324]
[1750669688141,0.4441499,101940.0,101930.0,0.0324]
[1750669688342,0.43434098,101940.0,101930.0,0.0324]
[1750669688561,0.4441499,101940.0,101930.0,0.0324]
[1750669689451,0.43434098,101940.0,101930.0,0.0324]
[1750669692536,0.4441498,101940.0,101930.0,0.0324]
[1750669692763,0.43434098,101940.0,101930.0,0.0324]
[1750669693679,0.05302098,101940.0,101930.0,0.16419939]
[1750669693896,4e-05,101940.0,101930.0,0.16419939]
[1750669694346,4e-05,101940.0,101930.0,0.18061933]
[1750669695954,4e-05,101940.0,101930.0,0.16419939]
[1750669699208,4e-05,101940.0,101930.0,0.0639]